[Event "Coimbra Queima Fitas Open 2024"]
[Site "Coimbra"]
[Date "2024.04.26"]
[Round "3.3"]
[White "Alegre, Fabio Da Conceicao B"]
[Black "Martins, Bruno Andre Leite"]
[Result "0-1"]
[ECO "A13"]
[WhiteElo "1942"]
[BlackElo "2360"]
[Annotator "RC"]
[PlyCount "98"]
[EventDate "2024.04.23"]
[EventType "swiss"]
[EventCountry "POR"]
[SourceTitle "playchess.com"]
[Source "ChessBase"]
[SourceQuality "1"]
[TimeControl "5400+30"]

1. c4 {[%emt 0:00:22]} e6 {[%emt 0:05:50]} 2. g3 {[%emt 0:01:29]} d5 {[%emt 0:00:09]} 3. Bg2 {[%emt 0:00:07]} Nf6 {[%emt 0:01:06]} 4. Nf3 {[%emt 0:00:10]} d4 {[%emt 0:06:21]} 5. O-O {[%emt 0:02:58]} c5 {[%emt 0:00:55]} 6. d3 {[%emt 0:06:40]} Nc6 {[%emt 0:00:18]} 7. e4 {[%emt 0:00:44]} Bd6 {[%emt 0:07:22]} 8. b4 {[%emt 0:06:45]} cxb4 {[%emt 0:05:02]} 9. e5 {[%emt 0:00:13]} Nxe5 {[%emt 0:00:12]} 10. Nxe5 {[%emt 0:00:10]} Bxe5 {[%emt 0:00:05]} 11. a3 {[%emt 0:02:00]} b3 {[%emt 0:01:41]} 12. Nd2 {[%emt 0:02:14]} O-O {[%emt 0:01:25]} 13. Nxb3 {[%emt 0:02:14]} Bc7 {[%emt 0:02:41]} 14. f4 {[%emt 0:03:54]} Re8 {[%emt 0:04:11]} 15. Kh1 {[%emt 0:08:53]} Rb8 {[%emt 0:12:18]} 16. g4 {[%emt 0:00:45]} e5 {[%emt 0:11:00]} 17. f5 {[%emt 0:00:49]} e4 {[%emt 0:06:50]} 18. dxe4 {[%emt 0:06:12]} Nxe4 {[%emt 0:01:34]} 19. Bf4 {[%emt 0:05:40]} b6 {[%emt 0:11:02]} 20. Qxd4 {[%emt 0:06:31]} Qxd4 {[%emt 0:00:13]} 21. Nxd4 {[%emt 0:00:02]} Bxf4 {[%emt 0:00:16]} 22. Rxf4 {[%emt 0:00:02]} Bb7 {[%emt 0:01:07]} 23. Bxe4 {[%emt 0:04:07]} Rxe4 {[%emt 0:08:10]} 24. Rxe4 {[%emt 0:00:10]} Bxe4+ {[%emt 0:00:03]} 25. Kg1 {[%emt 0:00:10]} Rd8 {[%emt 0:02:43]} 26. Nb5 {[%emt 0:02:52]} h5 {[%emt 0:07:21]} 27. h3 {[%emt 0:10:43]} hxg4 {[%emt 0:00:06]} 28. hxg4 {[%emt 0:00:02]} a6 {[%emt 0:01:42]} 29. Nc7 {[%emt 0:04:45]} Rd4 {[%emt 0:01:18]} 30. Kf2 {[%emt 0:01:51]} Rxc4 {[%emt 0:01:06]} 31. Nxa6 {[%emt 0:00:25]} Bb7 {[%emt 0:00:03]} 32. Nb8 {[%emt 0:02:47]} Rxg4 {[%emt 0:00:29]} 33. Rb1 {[%emt 0:01:08]} Rf4+ {[%emt 0:01:28]} 34. Kg3 {[%emt 0:00:01]} Rxf5 {[%emt 0:00:18]} 35. Rxb6 {[%emt 0:00:02]} Be4 {[%emt 0:00:55]} 36. Rb3 {[%emt 0:03:05]} Ra5 {[%emt 0:00:11]} 37. Nd7 {[%emt 0:04:06]} Bc6 {[%emt 0:00:08]} 38. Nb6 {[%emt 0:02:50]} g6 {[%emt 0:01:03]} 39. Rc3 {[%emt 0:00:22]} Be4 {[%emt 0:00:34]} 40. Kf4 {[%emt 0:00:30]} Bf5 {[%emt 0:00:17]} 41. Nc4 {[%emt 0:02:18]} Rc5 {[%emt 0:00:46]} 42. Ke3 {[%emt 0:00:41]} Be6 {[%emt 0:00:06]} 43. Kd4 {[%emt 0:00:10]} Rd5+ {[%emt 0:00:53]} 44. Ke3 {[%emt 0:00:13]} Rc5 {[%emt 0:00:28]} 45. Kd4 {[%emt 0:00:09]} Rxc4+ {[%emt 0:00:34]} 46. Rxc4 {[%emt 0:00:13]} Bxc4 {[%emt 0:00:01]} 47. Kxc4 {[%emt 0:00:03]} Kf8 {[%emt 0:00:06]} 48. Kd5 {[%emt 0:01:57]} Ke7 {[%emt 0:00:07]} 49. Kc6 {[%emt 0:00:03]} g5 {[%emt 0:00:13]} 0-1

[Event "Coimbra Queima Fitas Open 2024"]
[Site "Coimbra"]
[Date "2024.04.26"]
[Round "3.4"]
[White "Martin Duque, Jesus"]
[Black "Araujo, Ricardo Franca Paulo"]
[Result "1-0"]
[ECO "D34"]
[WhiteElo "2336"]
[BlackElo "1931"]
[Annotator "TA"]
[PlyCount "118"]
[EventDate "2024.04.23"]
[EventType "swiss"]
[EventCountry "POR"]
[SourceTitle "playchess.com"]
[Source "ChessBase"]
[SourceQuality "1"]
[TimeControl "5400+30"]

{[%evp 24,118,36,14,0,14,20,39,39,29,39,24,40,56,77,53,50,38,75,77,84,57,86,34,78,97,108,56,56,26,49,45,41,21,70,23,19,18,18,41,47,18,34,25,35,15,29,25,127,139,142,152,824,221,822,835,29991,352,368,347,339,298,280,275,864,341,372,341,358,372,359,373,343,375,378,343,481,489,476,554,556,539,1414,0,505,525,504,506,539,510,595,500,963,570,769,757,677]} 1. Nf3 {[%emt 0:08:34]} d5 {[%emt 0:00:05]} 2. g3 {[%emt 0:00:07]} Nf6 {[%emt 0:00:13]} 3. Bg2 {[%emt 0:00:03]} c5 {[%emt 0:00:19]} 4. O-O {[%emt 0:00:17]} Nc6 {[%emt 0:00:13]} 5. d4 {[%emt 0:00:21]} e6 {[%emt 0:00:32][%cal Be7e6,Be6d5,Bd5d4][%mdl 32]} 6. c4 {[%emt 0:00:18]} Be7 {[%emt 0:03:11]} 7. cxd5 {[%emt 0:00:28]} exd5 {[%emt 0:00:10]} 8. Nc3 {[%emt 0:01:51]} O-O {[%emt 0:00:08]} 9. dxc5 {[%emt 0:00:32]} Bxc5 {[%emt 0:00:20]} 10. Bg5 {[%emt 0:00:44]} d4 {[%emt 0:07:17]} 11. Ne4 {[%emt 0:00:54]} Be7 {[%emt 0:00:15]} 12. Bxf6 {[%emt 0:00:09]} Bxf6 {[%emt 0:00:05]} 13. Ne1 {[%emt 0:00:18]} Bf5 {[%emt 0:01:38]} 14. Nd3 {[%emt 0:01:01]} Bxe4 {[%emt 0:01:09]} 15. Bxe4 {[%emt 0:00:09]} Re8 {[%emt 0:00:40] White is slightly better.} 16. Bxc6 {[%emt 0:06:11]} bxc6 {[%emt 0:00:06]} 17. Rc1 {[%emt 0:00:14]} Qb6 {[%emt 0:01:12]} 18. Rc2 {[%emt 0:06:25]} Bg5 {[%emt 0:13:32]} 19. Re1 {[%emt 0:12:40]} Rad8 {[%emt 0:03:00]} 20. b4 {[%emt 0:06:22]} Rd5 {[%emt 0:07:24]} 21. Rc4 {[%emt 0:00:33]} Rd6 {[%emt 0:03:59][%cal Bd5d6,Bd6e6,Be6e4][%mdl 32]} 22. Rc5 {[%emt 0:03:54]} Be7 {[%emt 0:02:31]} 23. Qa4 {[%emt 0:01:46]} (23. Re5 $16) 23... Re6 {[%emt 0:03:22]} 24. Ra5 {[%emt 0:02:22]} Bf8 {[%emt 0:02:26]} 25. Ra6 {[%emt 0:11:40]} (25. Rxa7 $16 Rxe2 26. Rxe2 Rxe2 27. Kg2) 25... Qb5 {[%emt 0:01:44]} 26. Nf4 {[%emt 0:05:21]} Re4 {[%emt 0:04:52]} 27. Qxb5 {[%emt 0:04:46]} cxb5 {[%emt 0:00:07]} 28. Rxa7 {[%emt 0:01:30]} g5 {[%emt 0:04:14]} (28... Bxb4 $11 {deserves consideration.} 29. Rb1 Bc5) 29. Nd5 {[%emt 0:01:06]} (29. Nh5 $14 Bg7 30. Rd7) 29... Kg7 $1 $11 {[%emt 0:01:17][%cal Oe8d8]} 30. Rd1 $36 {[%emt 0:05:35][%mdl 2048] White is pushing.} Rd8 {[%emt 0:01:48] [#]} 31. Ne3 {[%emt 0:02:42][%cal Bd5e3,Be3f5,Bf5d6][%mdl 32]} Bxb4 {[%emt 0:01:26]} 32. Rb7 {[%emt 0:00:21]} Re5 {[%emt 0:02:38]} (32... Be7 {simplifies} 33. Nf5+ Kf6 34. Rxb5 Rxe2 35. Rxd4 Rxd4 36. Nxd4 Rxa2 37. Rb6+ Ke5) 33. g4 {[%emt 0:02:01]} Bc3 {[%emt 0:01:09][%cal Oh7h5]} 34. Nf5+ {[%emt 0:02:15]} Kf6 {[%emt 0:00:46]} 35. Kf1 {[%emt 0:02:02]} b4 {[%emt 0:01:25] White stays focused until the end.} (35... h5 $1 $11 {keeps the balance.}) 36. Rd3 $16 {[%emt 0:01:03]} Ra5 {[%emt 0:01:56]} 37. Rh3 {[%emt 0:00:57] White is much more active.} Re8 $2 {[%emt 0:13:31]} (37... Ke6 $16) 38. Rh6+ $18 {[%emt 0:01:32]} Ke5 {[%emt 0:00:12]} 39. Nd6 {[%emt 0:00:24]} (39. Rxf7 Re6 (39... Rxa2 $2 40. Ng7 $18) 40. Rhxh7 (40. Rfxh7 Rxa2 41. Rxe6+ Kxe6 $17) 40... Rxa2 $11) (39. Rxh7 Rf8 $16) 39... Rea8 {[%emt 0:02:18]} 40. Nc4+ $2 {[%emt 0:00:57]} (40. Rxf7 {mates} Rf8 41. Rxf8 Kd5 42. Rf5+ Kc6 43. Nc4+ (43. Rxa5 d3 44. Nc4+ Kc7 45. Ra7+ Kc8 46. Rhxh7 dxe2+ 47. Kxe2 Be5 48. Ra8+ Bb8 49. Nd6+ Kd8 50. Rxb8#) 43... Kc7 44. Rxh7+ (44. Nxa5 Kd7 45. Nc6 d3 46. Rf7+ Ke8 47. Re7+ Kf8 48. Rd6 dxe2+ 49. Kxe2 Bh8 50. Rd8#) 44... Kc6 45. Rh6+ (45. Nxa5+ Kd6 46. Nc4+ Kc6 47. Rh6+ Kd7 48. Rf7+ Ke8 49. Nd6+ Kd8 50. Rh8#) 45... Kd7 46. Rf7+ (46. Nxa5 d3 47. exd3 b3 48. Nxb3 Ke8 49. Nc5 Kd8 50. Re6 Bh8 51. Rf7 Bf6 52. Rd7+ Kc8 53. Re8+ Bd8 54. Rexd8#) 46... Ke8 47. Nd6+ Kd8 48. Rh8#) 40... Kd5 {[%emt 0:00:07]} 41. Nb6+ {[%emt 0:00:39]} Kc5 {[%emt 0:00:18]} 42. Rxf7 {[%emt 0:01:53][%cal Rf7f5] [#]} b3 {[%emt 0:01:19]} 43. axb3 {[%emt 0:00:18]} Re8 $2 {[%emt 0:01:02]} (43... R8a7 44. Rxa7 (44. Rfxh7 Rxh7 45. Rxh7 Kxb6 $17) 44... Rxa7 45. Na4+ Kb4 46. Rb6+ Ka3) 44. Rf5+ $2 {[%emt 0:01:30]} (44. Rfxh7 Kb4 45. Rg6 Kxb3 $16) (44. Nc4 {Intending Rf5+ and mate.} Rd8 45. Rf5+ Rd5 46. Nxa5 Bxa5 47. Rxd5+ (47. Rxh7 d3 $18) 47... Kxd5 48. h4 (48. Rxh7 Bd2 $18)) 44... Kb4 {[%emt 0:00:16]} 45. Rxa5 {[%emt 0:00:15]} ({Much less strong is} 45. Rxh7 Ra1+ 46. Kg2 Rxe2 47. Rxg5 (47. Nd5+ Kxb3 48. Rxg5 Ree1 $18) 47... Be1 48. Nd5+ Kxb3 $18) 45... Kxa5 {[%emt 0:00:05][%mdl 4096] Endgame. KRB-KRN} 46. Nc4+ {[%emt 0:00:33]} Kb4 {[%emt 0:00:18]} 47. Rxh7 {[%emt 0:00:55]} (47. Rb6+ Kc5 48. Rh6 Re7 $18) 47... Kxb3 {[%emt 0:00:08]} 48. Nd6 {[%emt 0:00:04]} Re6 {[%emt 0:00:16]} 49. Nf5 {[%emt 0:00:30]} Kc2 {[%emt 0:00:25]} (49... Ra6 {was necessary.} 50. Rd7 Ra4) 50. Rd7 {[%emt 0:00:12]} Re4 {[%emt 0:00:35]} 51. f3 {[%emt 0:00:27]} Rf4 {[%emt 0:00:36]} 52. Kg2 {[%emt 0:00:14]} Kd2 {[%emt 0:00:44]} 53. Kf1 {[%emt 0:02:26]} (53. e3 $142 Rxf5 54. gxf5) 53... Kc2 {[%emt 0:00:09]} 54. Kf2 {[%emt 0:00:18] White is clearly winning.} Kb3 {[%emt 0:00:41]} 55. h3 {[%emt 0:01:45]} Kc4 {[%emt 0:00:24]} 56. Kg2 {[%emt 0:00:35]} Kc5 {[%emt 0:00:27]} 57. Rd8 {[%emt 0:00:27] Hoping for e3.} Kc6 {[%emt 0:00:33]} (57... Kb6 $142 58. Rd6+ Kb7) 58. Rg8 {[%emt 0:00:08][%cal Oe2e3] e3! would now be deadly.} Bd2 {[%emt 0:00:15]} 59. Rxg5 {[%emt 0:00:15]} Kd5 {Weighted Error Value: White=0.39/Black=0.36.  Loses game:     	---       	Black=1      Mistake:       	White=5     	Black=5      Inaccurate:     	White=4     	Black=7      OK:         	White=17    	Black=5      Best:        	White=2     	Black=5      Strong:       	---       	Black=1} 1-0

[Event "Coimbra Queima Fitas Open 2024"]
[Site "Coimbra"]
[Date "2024.04.26"]
[Round "3.5"]
[White "Ribeiro, Rafael Alves Figueir"]
[Black "Grimm, Daniel"]
[Result "1/2-1/2"]
[ECO "B01"]
[WhiteElo "1927"]
[BlackElo "2296"]
[Annotator "TA"]
[PlyCount "63"]
[EventDate "2024.04.23"]
[EventType "swiss"]
[EventCountry "POR"]
[SourceTitle "playchess.com"]
[Source "ChessBase"]
[SourceQuality "1"]
[TimeControl "5400+30"]

{[%evp 19,63,34,44,50,50,40,45,42,49,55,47,56,42,45,77,76,77,75,72,68,77,68,78,67,67,66,64,58,67,67,72,67,70,64,72,55,93,68,102,94,104,81,225,225,247,247]} 1. e4 {[%emt 0:10:36]} d5 {[%emt 0:01:36]} 2. exd5 {[%emt 0:01:39]} Qxd5 {[%emt 0:00:13]} 3. Nc3 {[%emt 0:00:19]} Qa5 {[%emt 0:00:12]} 4. d4 {[%emt 0:01:06]} Nf6 {[%emt 0:00:33]} 5. Nf3 {[%emt 0:01:04]} Bf5 {[%emt 0:00:30]} 6. Ne5 {[%emt 0:01:13]} c6 {[%emt 0:00:52]} 7. Bc4 {[%emt 0:00:40]} e6 {[%emt 0:00:18]} 8. g4 {[%emt 0:01:30]} Bg6 {[%emt 0:01:00]} 9. h4 {[%emt 0:00:25][%cal Bh2h4,Bh4h5][%mdl 32]} Nbd7 {[%emt 0:02:37]} 10. Nxd7 {[%emt 0:31:21]} Nxd7 {[%emt 0:00:56]} 11. h5 {[%emt 0:00:10]} Be4 {[%emt 0:01:15]} 12. O-O {[%emt 0:00:15]} Bd5 {[%emt 0:01:42]} 13. Nxd5 {[%emt 0:00:09] White is slightly better.} cxd5 {[%emt 0:00:46]} 14. Bd3 {[%emt 0:00:05]} Bd6 {[%emt 0:03:16]} 15. Qf3 {[%emt 0:11:52]} Qd8 {[%emt 0:06:30]} 16. Kg2 {[%emt 0:09:23]} Qf6 {[%emt 0:04:59]} 17. Qxf6 {[%emt 0:04:40]} Nxf6 {[%emt 0:00:57]} 18. f3 {[%emt 0:00:16]} a6 {[%emt 0:02:44]} 19. a4 {[%emt 0:04:45]} Rc8 {[%emt 0:01:00]} 20. Bd2 {[%emt 0:05:40]} Nd7 {[%emt 0:02:01][%cal Bf6d7,Bd7b8,Bb8c6][%mdl 32]} 21. a5 {[%emt 0:02:42]} Nb8 {[%emt 0:02:32]} 22. c3 {[%emt 0:02:27]} Nc6 {[%emt 0:01:49]} 23. f4 {[%emt 0:00:05]} O-O {[%emt 0:01:40]} 24. Rfe1 {[%emt 0:03:49]} Rce8 {[%emt 0:03:44]} 25. Bc2 {[%emt 0:03:23]} Re7 {[%emt 0:01:04]} 26. b4 {[%emt 0:00:42]} Na7 {[%emt 0:01:07]} 27. Bd3 {[%emt 0:00:16]} Nc8 {[%emt 0:02:15]} 28. Re2 {[%emt 0:00:26] White is more active.} Bc7 {[%emt 0:00:34]} 29. Rae1 {[%emt 0:00:17][%cal Oh5h6]} Rfe8 {[%emt 0:00:37]} 30. Kf3 {[%emt 0:01:18]} f6 {[%emt 0:02:23]} (30... Na7 $16) 31. c4 $18 {[%emt 0:01:22]} Bd8 {[%emt 0:04:59]} 32. b5 {[%emt 0:01:42] Weighted Error Value: White=0.04 (flawless) /Black=0.16 (very precise) .  Mistake:       	---       	Black=1      Inaccurate:     	---       	Black=3      OK:         	White=12    	Black=7      Best:        	White=1     	---} 1/2-1/2

[Event "Coimbra Queima Fitas Open 2024"]
[Site "Coimbra"]
[Date "2024.04.26"]
[Round "3.6"]
[White "Kofalvi, Attila"]
[Black "Povshednyi, Ivan"]
[Result "0-1"]
[ECO "B10"]
[WhiteElo "1907"]
[BlackElo "2249"]
[Annotator "TA"]
[PlyCount "92"]
[EventDate "2024.04.23"]
[EventType "swiss"]
[EventCountry "POR"]
[SourceTitle "playchess.com"]
[Source "ChessBase"]
[SourceQuality "1"]
[TimeControl "5400+30"]

{[%evp 9,92,0,0,-78,0,0,0,0,0,0,0,0,0,0,0,0,0,0,24,15,20,18,12,-15,-16,-24,0,0,-8,-50,-47,-46,-28,-31,-49,-52,-39,-52,-46,-48,-49,-51,-27,-27,-5,-6,-7,-14,-8,-16,-8,-8,-8,-8,-12,-25,-14,-23,-8,-227,-219,-297,-297,-289,-282,-275,-268,-615,-615,-599,-560,-1427,-1376,-3716,-3274,-29946,-11910,-29975,-29975,-29975,-29976,-29976,-29982,-29972,-4943]} 1. e4 c6 2. Nf3 {[%emt 0:02:25]} d5 {[%emt 0:00:38]} 3. d3 {[%emt 0:00:59]} g6 {[%emt 0:04:02]} 4. e5 {[%emt 0:06:30]} c5 {[%emt 0:02:28]} 5. d4 {[%emt 0:01:06]} cxd4 {[%emt 0:04:12]} 6. h4 {[%emt 0:08:10]} (6. Nxd4 $11 Bg7 7. Bf4) 6... Bg7 {[%emt 0:20:56]} (6... Nc6 $17) 7. Qxd4 $11 {[%emt 0:11:15]} Nc6 {[%emt 0:00:36]} 8. Bb5 {[%emt 0:00:11] The position is equal.} Qa5+ {[%emt 0:00:44]} 9. Nc3 {[%emt 0:00:07][%cal Bb1c3,Bc3b5,Bb5d4,Bd4f3][%mdl 32]} Qxb5 {[%emt 0:00:17]} 10. Nxb5 {[%emt 0:00:08]} Nxd4 {[%emt 0:00:08]} 11. Nbxd4 {[%emt 0:00:39]} Bg4 {[%emt 0:01:28]} 12. Bf4 {[%emt 0:05:52]} Bxf3 {[%emt 0:10:45]} 13. Nxf3 {[%emt 0:01:52]} h6 {[%emt 0:02:14] Black is weak on the dark squares} 14. O-O-O {[%emt 0:05:10]} e6 {[%emt 0:00:19]} 15. Nd4 {[%emt 0:02:52]} a6 {[%emt 0:03:14] Wards off Nb5} 16. Rhe1 {[%emt 0:00:21][%cal Oh4h5]} Ne7 {[%emt 0:00:35]} 17. Bd2 {[%emt 0:08:24][%cal Oh4h5]} Nf5 {[%emt 0:05:18]} 18. Nxf5 {[%emt 0:00:41]} gxf5 {[%emt 0:00:02]} 19. Bb4 {[%emt 0:02:58]} Rc8 {[%emt 0:00:46]} 20. Rd4 {[%emt 0:00:21]} Rg8 {[%emt 0:08:20]} 21. g4 {[%emt 0:06:41]} fxg4 {[%emt 0:00:31]} 22. Rxg4 h5 $1 {[%emt 0:01:32]} 23. Rg3 {[%emt 0:06:58] [#] Strongly threatening Bd2.} Bh6+ {[%emt 0:04:05]} 24. Bd2 $1 {[%emt 0:00:24]} Rxg3 {[%emt 0:00:14]} 25. fxg3 $15 {[%emt 0:00:31][%mdl 4096] Endgame. KRB-KRB} Bg7 {[%emt 0:08:02]} 26. b3 {[%emt 0:05:27]} Bf8 {[%emt 0:02:31]} 27. g4 {[%emt 0:03:38]} hxg4 {[%emt 0:00:31]} 28. Rg1 $1 {[%emt 0:00:05]} Bg7 {[%emt 0:01:31]} ({Of course not} 28... Ba3+ 29. Kb1 $14) 29. Bf4 {[%emt 0:00:28]} f5 {[%emt 0:00:27] [#] White must now prevent ...Rc3.} 30. exf6 {[%emt 0:00:08]} Bxf6 {[%emt 0:00:04]} 31. Rxg4 {[%emt 0:00:20]} Kf7 {[%emt 0:00:22]} 32. Kd2 {[%emt 0:06:58]} Rh8 {[%emt 0:07:59]} 33. Bg3 {[%emt 0:00:25]} e5 {[%emt 0:01:09] Threatening ...Ke6.} 34. Rb4 $2 {[%emt 0:00:51] Loses the game.} (34. c4 $11) 34... b5 $19 {[%emt 0:00:46] aiming for ...Rg8.} 35. a4 {[%emt 0:00:55]} Rg8 {[%emt 0:02:54]} 36. Bxe5 {[%emt 0:06:24]} Bxe5 {[%emt 0:00:58]} 37. axb5 {[%emt 0:00:09] KRB-KR} Rg2+ {[%emt 0:01:17]} 38. Ke3 $2 {[%emt 0:00:46]} (38. Kd3 Rg3+ 39. Ke2) 38... Bd6 {[%emt 0:01:08]} 39. Ra4 {[%emt 0:02:17]} axb5 {[%emt 0:00:10]} (39... Rxc2 40. bxa6 Rc7 41. b4 $11) 40. Ra5 {[%emt 0:00:25]} Rxc2 {[%emt 0:00:25]} 41. Rxb5 {[%emt 0:00:09]} Ke6 {[%emt 0:00:02] And now ...Rh2 would win.} 42. Kf3 {[%emt 0:02:20]} Rh2 {[%emt 0:00:25]} 43. Kg4 {[%emt 0:00:09]} d4 {[%emt 0:00:08] Black mates.} 44. Ra5 {[%emt 0:00:46]} d3 {[%emt 0:00:14]} 45. Ra1 {[%emt 0:00:22]} d2 {[%emt 0:00:10]} 46. Rd1 {[%emt 0:00:13]} Bb4 {[%emt 0:00:07] Weighted Error Value: White=0.79/Black=0.05 (flawless) .  Loses game:     	White=1     	---        Mistake:       	White=1     	Black=1      Inaccurate:     	White=4     	---        OK:         	White=13    	Black=12     Best:        	White=3     	Black=7      Strong:       	White=2     	Black=1} 0-1

[Event "Coimbra Queima Fitas Open 2024"]
[Site "Coimbra"]
[Date "2024.04.26"]
[Round "3.7"]
[White "Ribeiro, Gustavo Martins Sant"]
[Black "Santos, Tomas Afonso Pires D"]
[Result "1-0"]
[ECO "A10"]
[WhiteElo "2226"]
[BlackElo "1904"]
[Annotator "TA"]
[PlyCount "58"]
[EventDate "2024.04.23"]
[EventType "swiss"]
[EventCountry "POR"]
[SourceTitle "playchess.com"]
[Source "ChessBase"]
[SourceQuality "1"]
[TimeControl "5400+30"]

{[%evp 24,58,15,7,32,38,18,45,66,0,0,0,0,0,0,-50,-45,-38,-33,-39,-2,-5,-8,-7,-8,-16,0,-18,25,22,22,27,30,0,898,866,29966]} 1. c4 {[%emt 0:00:13]} g6 {[%emt 0:00:17]} 2. Nc3 {[%emt 0:00:39]} c5 {[%emt 0:00:54]} 3. g3 {[%emt 0:00:42]} Bg7 {[%emt 0:05:24]} 4. Bg2 {[%emt 0:00:08]} Nf6 {[%emt 0:00:36]} 5. e4 {[%emt 0:00:55]} Nc6 {[%emt 0:00:42]} 6. Nge2 {[%emt 0:00:06]} O-O {[%emt 0:01:49]} 7. O-O {[%emt 0:00:04]} a6 {[%emt 0:01:56]} 8. d3 {[%emt 0:00:30]} d6 {[%emt 0:04:03]} 9. h3 {[%emt 0:00:25]} Rb8 {[%emt 0:01:56]} 10. a4 {[%emt 0:00:05]} Ne8 {[%emt 0:02:34]} 11. Be3 {[%emt 0:02:19]} Nc7 {[%emt 0:03:28]} 12. d4 {[%emt 0:04:55]} cxd4 {[%emt 0:00:55]} 13. Nxd4 {[%emt 0:00:31]} Nxd4 {[%emt 0:01:11]} 14. Bxd4 {[%emt 0:00:05]} Bxd4 {[%emt 0:00:08]} 15. Qxd4 {[%emt 0:00:02]} b5 {[%emt 0:00:19] White is slightly better.} 16. axb5 {[%emt 0:00:55] White is more active.} (16. cxb5 $14 axb5 17. a5) 16... axb5 $11 {[%emt 0:00:19]} 17. cxb5 {[%emt 0:05:33]} Nxb5 {[%emt 0:00:52]} 18. Nxb5 {[%emt 0:01:39]} Rxb5 {[%emt 0:00:12]} 19. Ra7 {[%emt 0:00:16]} (19. b4 $11) 19... e5 $1 $15 {[%emt 0:01:24]} 20. Qc3 {[%emt 0:06:15]} Qb6 {[%emt 0:02:03] Dodges b4} 21. Rc7 {[%emt 0:00:06]} Be6 {[%emt 0:11:34][%cal Ob5b3]} 22. Rc6 $36 {[%emt 0:03:10][%mdl 2048] White is pushing.} Qb8 {[%emt 0:00:18]} 23. Rd1 {[%emt 0:01:29][%cal Bf1d1,Bd1d2,Bd2d6][%mdl 32]} Rd8 {[%emt 0:01:30]} 24. Rd2 {[%emt 0:01:29]} Kg7 {[%emt 0:21:15]} 25. Bf1 {[%emt 0:02:19]} Rb4 {[%emt 0:02:41] [#]} 26. Rcxd6 $1 {[%emt 0:00:20]} Rxd6 {[%emt 0:04:05]} 27. Qxe5+ {[%emt 0:00:20]} Kg8 {[%emt 0:00:08]} 28. Rxd6 {[%emt 0:00:23]} Rxb2 $2 {[%emt 0:00:23][%mdl 8192]} (28... Rb6 $11 29. Rxe6 fxe6) 29. Qd4 $18 {[%emt 0:00:03] Intending Rd8+ and mate.} Rb6 {Weighted Error Value: White=0.17 (very precise) /Black=0.17 (very precise) .  Loses game:     	---       	Black=1      Mistake:       	White=2     	---        Inaccurate:     	White=1     	Black=3      OK:         	White=3     	Black=3      Best:        	White=3     	---        Strong:       	---       	Black=1} 1-0

[Event "Coimbra Queima Fitas Open 2024"]
[Site "Coimbra"]
[Date "2024.04.26"]
[Round "3.8"]
[White "Silva, Lourenco Santa Clara"]
[Black "Dias, Ivo Rodrigues"]
[Result "1/2-1/2"]
[ECO "B47"]
[WhiteElo "1893"]
[BlackElo "2145"]
[Annotator "TA"]
[PlyCount "45"]
[EventDate "2024.04.23"]
[EventType "swiss"]
[EventCountry "POR"]
[SourceTitle "playchess.com"]
[Source "ChessBase"]
[SourceQuality "1"]
[TimeControl "5400+30"]

{[%evp 18,45,0,8,3,12,9,-7,-11,-313,-281,-314,-283,-262,0,0,44,54,106,37,47,37,105,0,0,0,84,0,0,0]} 1. e4 {[%emt 0:00:07]} c5 {[%emt 0:10:13]} 2. Nf3 {[%emt 0:00:10]} e6 {[%emt 0:01:12]} 3. d4 {[%emt 0:00:05]} cxd4 {[%emt 0:00:07]} 4. Nxd4 {[%emt 0:00:03]} Nc6 {[%emt 0:00:21]} 5. Nc3 {[%emt 0:00:08]} Qc7 {[%emt 0:00:20]} 6. f4 {[%emt 0:00:06]} a6 {[%emt 0:02:11]} 7. Nxc6 {[%emt 0:00:05]} bxc6 {[%emt 0:00:36]} 8. Bd3 {[%emt 0:00:07]} d5 {[%emt 0:00:24]} 9. O-O {[%emt 0:00:10]} Nf6 {[%emt 0:00:56]} 10. Qe2 {[%emt 0:03:47]} Be7 {[%emt 0:00:20]} 11. Kh1 {[%emt 0:01:14]} O-O {[%emt 0:12:35]} 12. e5 {[%emt 0:30:00]} Nd7 {[%emt 0:00:32]} 13. Bxh7+ $2 {[%emt 0:05:29][%mdl 8192]} Kxh7 $19 {[%emt 0:01:28]} 14. Qh5+ {[%emt 0:00:06]} Kg8 {[%emt 0:00:07] Threatens to win with ...f6.} 15. Rf3 {[%emt 0:00:05] [#]} f5 $2 {[%emt 0:09:26]} (15... f6 $1 $19 {[%cal Rf6e5]} 16. Rg3 fxe5 17. Rxg7+ Kxg7 18. Qg4+ Bg5 19. Qxg5+ Kf7) 16. Rh3 $11 {[%emt 0:00:31]} Nf6 {[%emt 0:18:28]} 17. exf6 {[%emt 0:03:47]} Bxf6 {[%emt 0:00:43]} 18. Bd2 {[%emt 0:02:13]} (18. Ne2 $16) 18... Bd7 {[%emt 0:01:03]} 19. Re1 {[%emt 0:07:22]} d4 {[%emt 0:18:26]} ({Better is} 19... c5 $14) 20. Qh7+ {[%emt 0:07:05]} Kf7 {[%emt 0:00:09] [#] Hoping for ...Rh8.} 21. Qh5+ {[%emt 0:00:11]} Kg8 $1 {[%emt 0:01:17]} 22. Qh7+ {[%emt 0:00:06]} (22. Nb1 $16) 22... Kf7 {[%emt 0:00:03] ...Rh8 is the strong threat.} 23. Qh5+ {[%emt 0:05:16] Weighted Error Value: White=0.63/Black=0.49.  Loses game:     	White=1     	---        Missed win:     	---       	Black=1      Mistake:       	White=2     	Black=1      Inaccurate:     	---       	Black=3      OK:         	White=6     	Black=1      Strong:       	---       	Black=1} 1/2-1/2